bitfinex/quotes_ETHUSD_20240703
["timestamp","ask_amount","ask_price","bid_price","bid_amount"]
[1720024572196,0.52207248,3319.1,3317.7,3.01407]
[1720024572483,0.03638046,3319.0,3317.7,3.01407]
[1720024572707,0.52207248,3318.9,3316.9,3.01482]
[1720024572846,0.03638046,3318.8,3317.4,3.0144]
[1720024573046,0.52207248,3318.7,3317.4,3.0144]
[1720024573242,0.03638046,3318.6,3317.3,3.01441]
[1720024573481,0.03638046,3318.6,3317.1,3.01464]
[1720024573482,0.52207248,3318.5,3317.1,6.02921]
[1720024576378,0.55859077,3318.3,3317.1,3.01467]
[1720024576561,0.03638046,3318.2,3317.2,3.01457]
[1720024576800,0.03638046,3319.0,3317.3,0.602924]
[1720024577085,0.52217737,3318.9,3317.2,3.01457]
[1720024577289,0.55855783,3318.8,3317.2,3.01457]
[1720024577592,0.55855783,3318.7,3317.2,3.01457]
[1720024577785,0.52217391,3318.6,3317.0,5.1467]
[1720024577969,0.55855437,3318.5,3317.1,0.816151]
[1720024578180,0.03638046,3318.5,3317.1,0.816151]
[1720024578491,0.52220951,3318.4,3317.1,0.816151]
[1720024578799,0.52220951,3318.3,3317.0,5.1467]
[1720024578952,0.52220951,3318.2,3317.0,5.1467]
[1720024579150,0.52220951,3318.1,3317.0,5.1467]
[1720024579457,0.05746037,3319.0,3317.0,5.1467]
[1720024579458,0.30574604,3318.9,3317.0,5.1467]
[1720024579667,2.14437975,3318.8,3317.1,3.01467]
[1720024579876,0.52220798,3318.7,3317.1,3.01467]
[1720024580190,0.55858844,3318.6,3317.1,3.01467]
[1720024580494,0.52220798,3318.5,3317.2,0.514667]
[1720024580713,0.55858844,3318.4,3317.2,0.514667]
[1720024581015,0.52219497,3318.3,3317.2,0.514667]
[1720024581312,0.55857952,3318.2,3316.8,3.01492]
[1720024581617,0.52219906,3318.1,3316.9,0.06028185]
[1720024581911,0.52219906,3318.1,3316.7,3.01501]
[1720024581912,0.03638046,3318.0,3316.7,3.01501]
[1720024582083,0.52219906,3317.9,3316.7,3.01501]
[1720024582289,0.03638046,3317.8,3316.8,0.514701]
[1720024582817,0.52226773,3317.7,3316.4,3.01531]
[1720024583022,0.52226773,3317.7,3316.2,3.176]
[1720024583023,0.55864819,3317.6,3316.2,3.01545]
[1720024583182,0.55864819,3317.5,3316.1,8.49714]
[1720024583378,0.55864819,3317.4,3316.0,2.132]
[1720024583717,0.55864819,3317.4,3316.1,3.01554]
[1720024583718,0.52226773,3317.3,3316.1,3.01554]
[1720024584016,2.132,3318.0,3316.1,3.01554]
[1720024584017,0.5587285,3317.2,3316.1,3.01554]
[1720024584205,0.03638046,3317.2,3316.1,3.831866]
[1720024584405,0.03638046,3317.8,3316.1,3.831866]
[1720024584715,0.52235533,3317.7,3316.1,0.816326]
[1720024585012,0.55873579,3317.6,3316.1,0.816326]
[1720024585219,0.52235533,3317.5,3316.2,0.5963996]
[1720024585423,0.03638046,3317.4,3316.2,0.5963996]
[1720024585593,0.52235533,3317.3,3316.2,0.5963996]
[1720024585930,0.03638046,3317.2,3316.2,0.5963996]
[1720024586313,0.03638046,3317.8,3316.2,0.5963996]
[1720024586482,3.55,3317.9,3316.2,0.5963996]
[1720024586483,0.91737584,3317.7,3316.2,0.5963996]
[1720024586855,0.52235733,3317.6,3316.2,0.5963996]
[1720024587031,0.03638046,3317.5,3316.2,0.5963996]
[1720024587338,0.5223566,3317.4,3316.2,0.5963996]
[1720024587480,0.55873706,3317.3,3316.2,0.5963996]
[1720024587684,0.03638046,3317.2,3316.2,0.5963996]
[1720024587885,0.03638046,3317.6,3316.2,0.5963996]
[1720024588106,0.52235803,3317.5,3316.0,2.132]
[1720024588443,0.52235803,3317.5,3315.6,3.016]
[1720024588444,0.55873849,3317.4,3315.6,5.14797]
[1720024588629,0.52235803,3317.3,3315.7,0.514797]
[1720024588943,0.03638046,3317.2,3315.7,0.514797]
[1720024589149,0.52235803,3317.1,3315.7,0.514797]
[1720024589447,0.03638046,3317.0,3315.7,0.514797]
[1720024589846,0.03638046,3317.0,3315.4,5.46605]
[1720024590144,0.03638046,3317.5,3315.5,3.01606]
[1720024590343,0.03638046,3317.5,3315.6,3.01603]
[1720024590344,3.01549,3316.3,3315.6,3.01603]
[1720024591137,3.01561,3316.1,3315.1,5.46635]
[1720024591342,6.03127,3316.1,3315.3,3.01627]
[1720024591748,6.03127,3316.1,3315.2,2.678635]
[1720024592061,3.01572,3316.0,3315.2,2.678635]
[1720024592408,3.01558,3316.2,3315.2,2.678635]
[1720024592610,3.01558,3316.2,3315.3,0.8144945]
[1720024592912,3.01527,3316.5,3315.5,3.0161]
[1720024593131,6.01537,3316.4,3315.6,0.0603062]
[1720024593336,3.0,3316.4,3315.8,3.01584]
[1720024593546,3.01509,3316.7,3315.9,0.57508851]
[1720024593547,3.0,3316.6,3315.9,0.57508851]
[1720024593730,3.0,3316.6,3315.9,3.59083851]
[1720024595132,3.0,3316.6,3315.9,0.514784]
[1720024595331,3.01555,3316.2,3315.3,0.8144945]
[1720024595532,0.03638046,3316.5,3315.7,3.01593]
[1720024595533,3.01528,3316.5,3315.7,3.01593]
[1720024595745,6.01508,3316.7,3315.9,3.01575]
[1720024595927,6.01508,3316.7,3316.0,0.06030169]
[1720024596127,3.01424,3317.6,3316.1,5.14751]
[1720024596424,3.01482,3317.0,3316.2,3.59653637]
[1720024596620,6.02967,3317.0,3316.3,0.06029536]
[1720024596877,3.01482,3317.0,3316.3,0.06029536]
[1720024597059,3.01482,3317.0,3316.4,0.35965365]
[1720024597210,3.01482,3317.0,3316.5,0.06029537]
[1720024597420,3.0,3316.9,3316.5,0.06029537]
[1720024597845,3.0,3317.1,3316.5,0.06029537]
[1720024598423,3.01429,3317.6,3316.5,2.19229537]
[1720024598863,3.01429,3317.6,3316.8,2.132]
[1720024599155,3.01429,3317.6,3316.9,0.06028544]
[1720024599861,3.01389,3318.0,3317.0,6.19075]
[1720024600054,3.01389,3318.0,3317.2,2.132]
[1720024600055,3.01386,3318.0,3317.2,2.132]
[1720024602120,3.01318,3318.8,3318.2,2.132]
[1720024602318,3.01318,3318.8,3318.3,0.060265]
[1720024602649,3.07041037,3319.0,3318.3,0.060265]
[1720024602650,3.01295,3319.0,3318.3,0.060265]
[1720024602855,6.02565,3319.2,3318.3,0.5808595]
[1720024603189,3.01281,3319.2,3318.3,0.5808595]
[1720024603398,3.01281,3319.2,3318.3,3.5944295]
[1720024603673,3.01281,3319.2,3318.2,2.132]
[1720024603674,3.615351,3319.2,3318.2,2.132]
[1720024603844,3.01301,3319.0,3318.2,2.132]
[1720024604047,3.01306,3318.9,3318.2,2.132]
[1720024604243,3.01313,3318.8,3317.8,2.132]
[1720024604448,3.0,3318.7,3317.8,2.132]
[1720024604673,3.0,3318.7,3317.8,5.660639]
[1720024604874,3.03638046,3318.7,3317.8,2.646609]
[1720024605034,3.03638046,3318.7,3317.5,2.4036]
[1720024605235,3.0136,3318.3,3317.5,2.4036]
[1720024605465,3.01368,3318.2,3317.4,2.132]
[1720024605664,3.01368,3318.2,3317.4,2.646646]
[1720024606137,3.01368,3318.2,3317.4,5.661036]
[1720024606756,3.01368,3318.2,3317.4,2.646646]
[1720024607073,3.01378,3318.1,3317.4,2.132]
[1720024609087,3.01404,3317.8,3317.0,2.132]
[1720024610066,6.02817,3317.8,3317.0,2.132]
[1720024610777,3.01415,3317.7,3317.0,2.132]
[1720024610972,3.01404,3317.8,3317.0,2.964585]
[1720024611290,3.01404,3317.8,3317.0,5.979345]
[1720024612084,3.0,3318.0,3317.0,5.979345]
[1720024612085,6.01391,3318.0,3317.0,5.979345]
[1720024612383,3.01395,3317.9,3317.0,5.979345]
[1720024612585,3.01395,3317.9,3317.1,0.8994145]
[1720024612770,3.0,3318.0,3317.2,0.06028017]
[1720024612972,3.0,3318.0,3317.4,2.132]
[1720024613158,3.0,3318.0,3317.5,0.06027595]
[1720024614086,3.0,3318.0,3317.4,5.1464]
[1720024614582,3.0,3318.0,3317.5,0.06027596]
[1720024616771,3.0,3318.2,3317.5,0.06027596]
[1720024617567,6.01368,3318.2,3317.5,0.06027596]
[1720024618914,3.0,3318.2,3317.5,0.06027596]
[1720024619211,3.0,3318.2,3317.6,0.7470776]
[1720024619374,3.0,3318.3,3317.8,2.132]
[1720024619575,3.0,3318.3,3317.9,0.06026991]
[1720024620307,6.01359,3318.3,3317.4,5.27844]
[1720024620523,6.01359,3318.3,3317.7,3.01413]
[1720024620524,3.0,3318.3,3317.7,3.01413]
[1720024620874,3.0,3318.4,3317.7,3.01413]
[1720024621274,7.4,3318.5,3318.0,3.01385]
[1720024621590,7.4,3318.5,3318.1,2.76405102]
[1720024623174,7.4,3318.5,3318.2,0.06026604]
[1720024623808,7.4,3318.5,3318.1,2.703785]
[1720024624110,7.4,3318.5,3317.9,5.14592]
[1720024624468,7.4,3318.5,3318.0,3.01385]
[1720024624717,7.4,3318.5,3318.0,3.07411605]
[1720024625215,3.0,3318.9,3318.2,3.01366]
[1720024625518,3.0,3318.8,3318.4,2.2851]
[1720024625779,3.0,3319.0,3318.4,2.2851]
[1720024626043,3.0,3319.0,3318.5,0.06025871]
[1720024628623,7.4,3319.3,3318.4,5.29856]
[1720024628624,3.01292,3319.1,3318.4,2.2851]
[1720024628827,6.01296,3319.0,3318.4,2.2851]
[1720024628998,3.01296,3319.0,3318.4,2.2851]
[1720024629202,3.01307,3318.9,3318.3,2.132]
[1720024629700,0.602603,3318.9,3318.0,2.3111]
[1720024629905,0.602603,3318.9,3317.5,0.527844]
[1720024629906,3.0134,3318.6,3317.6,7.4573]
[1720024630111,3.01315,3318.8,3318.0,2.132]
[1720024630407,3.01315,3318.8,3318.1,0.06026436]
[1720024630607,6.01281,3319.2,3318.1,0.2794908]
[1720024630843,6.01281,3319.2,3318.4,2.132]
[1720024630998,3.0,3319.2,3318.8,2.132]
[1720024631413,6.0128,3319.2,3318.8,2.132]
[1720024632197,6.0128,3319.2,3318.3,2.4274]
[1720024632397,6.0128,3319.2,3318.4,0.862001]
[1720024632620,6.0128,3319.2,3318.4,3.875491]
[1720024634936,3.01286,3319.1,3318.4,0.862001]
[1720024635291,3.01309,3318.9,3318.0,2.3717]
[1720024635497,3.01332,3318.6,3318.0,2.3717]
[1720024636133,3.01332,3318.6,3317.8,2.132]
[1720024636831,3.01346,3318.5,3317.8,2.132]
[1720024637134,3.01318,3318.8,3317.9,3.07413911]
[1720024637310,3.0,3318.7,3317.9,3.07413911]
[1720024637635,3.0,3318.7,3317.9,3.01387]
[1720024637810,6.01326,3318.7,3317.9,3.01387]
[1720024637995,6.01326,3318.7,3317.9,4.0724]
[1720024638195,3.0,3318.7,3317.9,4.0724]
[1720024638401,3.0,3318.8,3318.0,0.06026513]
[1720024638631,6.01315,3318.8,3318.0,0.06026513]
[1720024638827,6.01315,3318.8,3318.0,0.98813464]
[1720024639035,6.01315,3318.8,3318.0,4.00197464]
[1720024639398,9.02636,3318.8,3318.0,4.00197464]
[1720024639593,9.02636,3318.8,3318.0,0.92786951]
[1720024639594,3.01329,3318.7,3318.0,0.92786951]
[1720024639820,3.0,3318.6,3317.9,3.01392]
[1720024640026,2.99869225,3318.6,3317.9,3.01392]
[1720024640818,2.99869225,3318.6,3318.0,3.01384]
[1720024641143,3.01315,3318.8,3318.0,3.01384]
[1720024641651,3.01326,3318.7,3318.0,3.01384]
[1720024642137,3.01326,3318.7,3317.8,5.14596]
[1720024642138,6.01333,3318.6,3317.8,3.01396]
[1720024642440,6.01333,3318.6,3317.9,2.132]
[1720024642441,3.0136,3318.3,3317.9,2.132]
[1720024642648,3.0136,3318.3,3317.5,2.132]
[1720024643208,3.01358,3318.4,3317.5,2.132]
[1720024643209,3.01368,3318.2,3317.5,2.132]
[1720024644240,3.01368,3318.2,3317.5,2.877082]
[1720024644549,3.01384,3318.1,3317.5,2.132]
[1720024644711,3.01392,3318.0,3317.1,2.305]
[1720024644908,3.01404,3317.8,3317.2,2.132]
[1720024645242,3.01414,3317.7,3317.2,2.132]
[1720024646612,3.01433,3317.5,3317.2,2.132]
[1720024647159,3.0144,3317.4,3317.2,2.132]
[1720024647313,3.01456,3317.3,3316.8,2.4096]
[1720024647507,3.01461,3317.2,3316.6,2.132]
[1720024648010,3.01461,3317.2,3316.7,0.06029144]
[1720024648223,3.01469,3317.1,3316.6,2.132]
[1720024649351,3.01469,3317.1,3316.6,2.58616]
[1720024649552,3.01477,3317.0,3316.6,2.132]
[1720024649855,3.01477,3317.0,3316.4,4.5416]
[1720024650235,6.02945,3317.1,3316.4,4.5416]
[1720024650411,3.01482,3317.0,3316.4,4.5416]
[1720024651135,3.01482,3317.0,3316.0,2.132]
[1720024651136,3.0152,3316.6,3316.0,2.132]
[1720024651317,3.01538,3316.4,3316.0,2.132]
[1720024651714,3.0152,3316.6,3316.0,2.132]
[1720024651940,3.01498,3316.8,3316.1,0.06030631]
[1720024653761,3.01505,3316.7,3316.1,0.06030631]
[1720024654651,3.0,3316.9,3316.1,0.06030631]
[1720024654850,3.0,3316.9,3316.2,2.2899]
[1720024655147,3.0,3316.9,3316.3,0.06029743]
[1720024655376,6.01492,3316.9,3316.4,2.132]
[1720024655516,3.01496,3316.8,3316.2,2.2899]
[1720024655966,3.01507,3316.7,3316.2,2.2899]
[1720024657984,3.01507,3316.7,3316.3,0.06030128]
[1720024658280,6.01488,3316.9,3316.3,0.06030128]
[1720024659386,3.0,3316.9,3316.3,0.29532141]
[1720024659590,3.0,3317.0,3316.3,0.29532141]
[1720024659792,3.0,3317.0,3316.4,2.132]
[1720024659994,3.0,3317.0,3316.5,0.06029672]
[1720024660158,6.01481,3317.0,3316.5,0.06029672]
[1720024661093,3.0,3317.0,3316.5,0.30302841]
[1720024661303,6.0145,3317.3,3316.5,0.30302841]
[1720024661781,6.0145,3317.3,3316.5,3.31820841]
[1720024662707,3.01414,3317.7,3316.9,3.01486]
[1720024662934,3.05052046,3317.7,3316.9,3.01486]
[1720024663108,3.01414,3317.7,3316.9,3.529546]
[1720024663671,3.05052046,3317.7,3316.9,3.529546]
[1720024664014,3.0,3317.6,3317.0,0.0602869]
[1720024664182,3.0,3317.6,3317.1,2.4663]
[1720024664513,3.0,3317.7,3317.2,0.31294273]
[1720024664721,3.0,3317.7,3317.3,0.06028345]
[1720024664879,6.01415,3317.7,3317.1,2.4663]
[1720024666182,0.03638046,3317.6,3316.8,2.3199]
[1720024667236,3.01432,3317.5,3316.8,2.3199]
[1720024667419,3.0,3317.4,3316.8,2.3199]
[1720024669550,7.4,3318.2,3316.8,2.3199]
[1720024669713,7.4,3318.2,3317.8,2.132]
[1720024670188,7.4,3318.2,3317.8,2.19227384]
[1720024671932,3.01342,3318.5,3317.8,2.132]
[1720024672187,3.01342,3318.5,3317.9,0.06027288]
[1720024672451,3.0,3318.4,3317.9,0.06027288]
[1720024675735,3.0,3318.4,3317.8,2.132]
[1720024675933,0.03638046,3318.3,3317.7,2.3244]
[1720024676134,0.03638046,3318.3,3317.5,3.01431]
[1720024676135,3.04997046,3318.3,3317.5,3.01431]
[1720024676468,3.0,3318.2,3317.5,3.866959]
[1720024676627,3.03638046,3318.3,3317.5,3.866959]
[1720024676831,3.0,3318.3,3317.5,3.866959]
[1720024677031,3.0,3318.3,3317.6,3.01422]
[1720024677263,6.04998046,3318.3,3317.6,3.01422]
[1720024677463,6.04998046,3318.3,3317.5,0.852649]
[1720024677464,0.03638046,3318.2,3317.5,0.852649]
[1720024677666,0.03638046,3318.2,3317.5,3.01431]
[1720024678934,3.01378,3318.1,3317.3,2.4978]
[1720024679136,3.05024046,3318.0,3317.3,2.4978]
[1720024679758,3.05024046,3318.0,3317.2,2.132]
[1720024681579,3.05024046,3318.0,3317.2,6.203041]
[1720024681977,0.03638046,3318.2,3317.3,3.07476095]
[1720024682426,3.01383,3318.1,3317.3,3.07476095]
[1720024682567,3.0,3318.0,3317.5,2.3429]
[1720024682902,3.0,3318.3,3317.5,2.3429]
[1720024683115,3.01388,3318.0,3317.5,2.3429]
[1720024683814,3.01388,3318.0,3317.3,2.132]
[1720024683815,3.05008046,3318.2,3317.3,2.132]
[1720024683972,3.0,3318.1,3317.3,2.132]
[1720024684173,3.0,3318.1,3317.5,3.01431]
[1720024684680,3.0,3318.1,3317.6,3.07449584]
[1720024684901,3.0,3318.3,3317.8,2.398]
[1720024685098,3.0,3318.3,3317.8,2.45827454]
[1720024685410,3.0,3318.3,3317.9,3.01394]
[1720024685705,3.0,3318.6,3318.1,3.01376]
[1720024685925,10.41316,3318.8,3318.1,5.14576]
[1720024685926,3.0,3318.7,3318.1,5.14576]
[1720024687322,3.04970046,3318.6,3317.8,2.398]
[1720024687649,3.0,3318.5,3317.8,2.398]
[1720024687851,3.01351,3318.4,3317.8,2.398]
[1720024688343,3.0,3318.5,3317.8,2.939209]
[1720024688847,3.03638046,3318.5,3317.8,2.939209]
[1720024689004,3.01351,3318.4,3317.8,2.398]
[1720024689862,3.0,3318.5,3317.8,2.398]
[1720024690012,3.0,3318.5,3318.2,3.01366]
[1720024690217,7.4,3319.1,3318.6,3.01331]
[1720024690451,7.4,3319.6,3318.7,0.61031692]
[1720024690660,7.4,3319.6,3318.9,3.01304]
[1720024691247,10.41241,3319.6,3318.7,3.563211]
[1720024691449,0.03638046,3319.5,3318.7,3.563211]
[1720024691611,3.01257,3319.5,3318.7,3.563211]
[1720024692047,3.0127,3319.3,3318.5,5.50066]
[1720024692246,3.0,3319.2,3318.5,5.50066]
[1720024693057,3.01288,3319.1,3318.5,2.4873]
[1720024694060,6.01285,3319.2,3318.5,2.4873]
[1720024694214,3.01288,3319.1,3318.5,2.4873]
[1720024694643,3.0,3319.2,3318.5,2.4873]
[1720024694951,3.01278,3319.2,3318.6,0.06026001]
[1720024695255,3.01288,3319.1,3318.6,0.06026001]
[1720024695407,3.01295,3319.0,3318.5,2.4873]
[1720024695615,3.01295,3319.0,3318.1,5.36986]
[1720024695907,3.01295,3319.0,3318.1,5.989136]
[1720024696519,3.01295,3319.0,3318.1,9.002836]
[1720024696734,3.01295,3319.0,3318.2,3.01365]
[1720024697744,3.01306,3318.9,3318.1,5.989076]
[1720024698548,3.01306,3318.9,3318.2,0.9168076]
[1720024698747,0.03638046,3318.8,3318.1,2.975376]
[1720024698950,3.01324,3318.7,3317.9,3.0139]
[1720024699254,3.01324,3318.7,3317.9,6.02779]
[1720024700657,3.01324,3318.7,3318.0,3.01385]
[1720024700970,3.01316,3318.8,3318.1,0.602774]
[1720024701845,3.01323,3318.7,3318.1,0.602774]
[1720024702051,3.01337,3318.6,3317.8,2.3755]
[1720024702642,0.03638046,3318.5,3317.8,2.3755]
[1720024702844,3.01359,3318.3,3317.5,5.37246]
[1720024703046,3.01359,3318.3,3317.6,0.537246]
[1720024704767,6.02726,3318.3,3317.6,0.537246]
[1720024706596,3.01396,3317.9,3317.2,1.056471]
[1720024706754,3.01396,3317.9,3317.1,8.35898]
[1720024707071,3.01396,3317.9,3317.1,5.3443]
[1720024708786,3.01412,3317.8,3317.1,2.3297]
[1720024709576,6.02823,3317.8,3317.1,2.3297]
[1720024709955,3.01411,3317.8,3317.1,2.3297]
[1720024710893,3.01414,3317.7,3317.1,2.3297]
[1720024712352,3.01414,3317.7,3317.1,2.864156]
[1720024713402,3.01411,3317.8,3317.1,2.864156]
[1720024714900,3.01411,3317.8,3317.1,5.878786]
[1720024715261,3.01373,3318.2,3317.2,3.07478128]
[1720024715463,3.0,3318.1,3317.4,3.0144]
[1720024715664,3.0,3318.1,3317.5,0.0602769]
[1720024718606,6.01379,3318.1,3317.5,0.0602769]
[1720024718785,6.01379,3318.1,3317.2,3.0145]
[1720024718786,3.01389,3318.0,3317.2,3.0145]
[1720024718988,6.02782,3318.0,3317.2,3.0145]
[1720024719191,3.01405,3317.8,3317.1,2.3297]
[1720024721717,6.02816,3317.8,3317.1,2.3297]
[1720024721920,3.01405,3317.8,3317.1,2.3297]
[1720024724398,6.02817,3317.8,3317.1,2.3297]
[1720024724609,0.03638046,3317.7,3316.6,3.01507]
[1720024724909,3.01442,3317.4,3316.7,2.3616]
[1720024725831,3.01442,3317.4,3316.7,5.37664]
[1720024726401,3.01442,3317.4,3316.8,0.83917]
[1720024726927,3.01423,3317.6,3316.8,3.85412]
[1720024727084,3.01433,3317.5,3316.9,0.06028748]
[1720024727422,3.01433,3317.5,3316.8,3.85412]
[1720024729400,6.02889,3317.4,3316.8,0.83917]
[1720024729726,3.01453,3317.3,3316.7,2.3616]
[1720024730089,3.01464,3317.2,3316.4,3.01528]
[1720024730331,3.01464,3317.2,3316.4,2.3743]
[1720024730332,3.01469,3317.1,3316.4,2.3743]
[1720024730526,3.01478,3317.0,3316.4,2.3743]
[1720024730689,3.01504,3316.7,3316.1,2.4507]
[1720024735595,3.01504,3316.7,3316.1,5.46629]
[1720024736396,3.01487,3316.9,3316.1,5.46629]
[1720024736608,3.01496,3316.8,3316.2,0.546629]
[1720024736935,3.01487,3316.9,3316.2,0.546629]
[1720024737128,10.4,3317.2,3316.3,3.07564955]
[1720024737129,13.41459,3317.2,3316.3,3.07564955]
[1720024737533,7.4,3317.2,3316.7,3.01504]
[1720024737836,7.4,3317.2,3316.8,0.06029037]
[1720024739037,7.4,3317.2,3316.8,3.07519037]
[1720024739247,3.01398,3317.9,3316.8,3.07519037]
[1720024739248,10.41398,3317.9,3316.9,2.2627]
[1720024739456,10.41398,3317.9,3317.1,3.01463]
[1720024739745,3.01398,3317.9,3317.2,0.06028187]
[1720024739912,3.01398,3317.9,3317.2,3.07484187]
[1720024740114,3.01387,3318.0,3317.3,0.06028192]
[1720024740441,7.4,3318.4,3317.4,3.01435]
[1720024740442,3.0,3317.9,3317.4,3.01435]
[1720024740641,3.01373,3318.2,3317.4,3.01435]
[1720024740642,7.4,3318.4,3317.7,3.01412]
[1720024741646,7.4,3318.4,3317.4,2.4735]
[1720024741647,3.01377,3318.1,3317.4,2.4735]
[1720024741944,3.0,3318.0,3317.4,2.4735]
[1720024742839,3.0,3318.0,3317.4,5.4879]
[1720024744350,3.0,3318.0,3317.5,0.60968432]
[1720024745641,3.0,3318.2,3317.6,0.0602769]
[1720024746904,6.01368,3318.2,3317.6,0.0602769]
[1720024747415,9.02744,3318.2,3317.6,0.0602769]
[1720024747614,9.02744,3318.2,3317.5,3.62399432]
[1720024747826,3.01378,3318.1,3317.5,3.62399432]
[1720024748035,3.0,3318.0,3317.5,3.62399432]
[1720024748232,3.0,3318.0,3317.5,0.60968432]
[1720024748511,3.0,3318.0,3317.4,2.4735]
[1720024749313,6.01386,3318.0,3317.4,2.4735]
[1720024749554,3.01401,3317.9,3317.0,2.63469904]
[1720024749855,3.01401,3317.9,3317.1,3.01463]
[1720024750076,3.01401,3317.9,3317.2,0.5649329]
[1720024751572,3.01401,3317.9,3317.2,3.5795129]
[1720024751777,3.0,3318.0,3317.2,3.5795129]
[1720024752277,6.01388,3318.0,3317.2,3.5795129]
[1720024753538,3.014,3317.9,3317.2,0.5649329]
[1720024754340,3.014,3317.9,3317.3,0.35796029]
[1720024756590,3.0,3318.0,3317.3,0.35796029]
[1720024756773,3.0,3318.0,3317.4,3.01439]
[1720024756976,3.0,3318.1,3317.5,2.35187743]
[1720024757146,3.0,3318.1,3317.5,2.9243002]
[1720024757508,3.0,3318.1,3317.5,2.86402277]
[1720024757730,3.0,3318.1,3317.6,0.06027745]
[1720024758704,3.0,3318.1,3317.5,5.87832277]
[1720024759004,6.01382,3318.1,3317.5,5.87832277]
[1720024759706,6.01382,3318.1,3317.5,2.86402277]
[1720024759919,3.01387,3318.0,3317.5,2.2916]
[1720024760778,3.05025046,3318.0,3317.2,0.5649329]
[1720024760978,3.01404,3317.8,3317.1,2.27]
[1720024761185,3.01404,3317.8,3316.8,3.01489]
[1720024761378,3.01404,3317.8,3316.8,5.26789]
[1720024761576,3.01414,3317.7,3316.9,3.01479]
[1720024761802,3.01414,3317.7,3316.9,4.160958]
[1720024762225,3.01414,3317.7,3317.0,3.01474]
[1720024763295,3.01404,3317.8,3317.0,3.01474]
[1720024763528,3.01404,3317.8,3317.1,2.476]
[1720024764155,3.01415,3317.7,3317.1,2.476]
[1720024765548,3.01415,3317.7,3316.8,5.36309]
[1720024766106,3.01415,3317.7,3316.8,8.37798]
[1720024766307,3.01424,3317.6,3316.8,5.36309]
[1720024767205,3.01438,3317.5,3316.8,2.3482]
[1720024767724,3.01442,3317.4,3316.8,2.3482]
[1720024769126,3.01424,3317.6,3316.8,2.3482]
[1720024769329,3.01424,3317.6,3316.8,5.36313]
[1720024769545,3.01424,3317.6,3316.9,0.536313]
[1720024769947,3.01433,3317.5,3316.9,0.536313]
[1720024770363,3.01421,3317.7,3316.9,0.536313]
[1720024770537,3.01421,3317.7,3317.0,0.06028816]
[1720024771086,3.01425,3317.6,3317.0,0.06028816]
[1720024772222,3.01425,3317.6,3317.0,0.95775028]
[1720024773030,6.0138,3318.1,3317.0,0.95775028]
[1720024773031,3.0139,3318.0,3317.0,0.95775028]
[1720024773337,3.0,3317.9,3317.2,6.02906]
[1720024773535,3.0,3317.9,3317.3,0.06028373]
[1720024773936,6.01397,3317.9,3317.3,0.06028373]
[1720024774147,3.0,3317.9,3317.3,0.06028373]
[1720024774355,6.01377,3318.1,3317.4,3.01435]
[1720024774558,6.01377,3318.1,3317.5,0.06027922]
[1720024775069,6.01377,3318.1,3317.4,3.01435]
[1720024776263,0.55852645,3318.0,3317.4,3.01435]
[1720024776468,3.05026046,3318.0,3317.2,3.01453]
[1720024776675,3.0,3317.9,3317.2,3.01453]
[1720024776874,6.05034046,3317.9,3317.1,2.4428]
[1720024777170,6.05034046,3317.9,3317.1,5.45743]
[1720024777540,3.01422,3317.7,3316.8,5.2963]
[1720024777748,0.03638046,3317.6,3316.8,5.2963]
[1720024778571,3.01432,3317.5,3316.8,5.2963]
[1720024779169,6.02872,3317.5,3316.8,2.2814]
[1720024779965,0.03638046,3317.4,3316.8,2.2814]
[1720024782172,3.05070046,3317.5,3316.8,2.2814]
[1720024782371,3.05070046,3317.5,3316.8,3.112537]
[1720024782602,3.05070046,3317.5,3316.8,6.127477]
[1720024782889,3.05070046,3317.5,3316.8,3.112537]
[1720024783579,3.01432,3317.5,3316.8,3.112537]
[1720024783934,6.0287,3317.5,3316.8,3.112537]
[1720024785043,0.03638046,3317.4,3316.8,3.112537]
[1720024786877,3.01441,3317.4,3316.8,3.112537]
[1720024787078,3.05079046,3317.4,3316.8,3.112537]
[1720024788504,3.05079046,3317.4,3316.8,2.2814]
[1720024788891,3.01451,3317.3,3316.5,5.50887]
[1720024789196,3.05099046,3317.2,3316.5,5.50887]
[1720024790678,3.01468,3317.1,3316.5,2.4937]
[1720024792167,0.03638046,3317.0,3316.5,2.4937]
[1720024792368,3.01486,3316.9,3316.2,5.46353]
[1720024794999,3.01486,3316.9,3316.3,3.0154]
[1720024795198,3.01486,3316.9,3316.3,3.863303]
[1720024796013,3.01486,3316.9,3316.3,0.847903]
[1720024798398,3.01486,3316.9,3316.2,5.46359]
[1720024798878,6.02979,3316.9,3316.2,5.46359]
[1720024799515,3.01486,3316.9,3316.2,5.46359]
[1720024800525,3.05135046,3316.8,3316.2,2.4481]
[1720024800823,3.05135046,3316.8,3316.0,6.19467]
[1720024800824,3.01507,3316.7,3315.9,4.4461]
[1720024801120,3.01507,3316.7,3315.9,8.525957]
[1720024801121,3.01509,3316.7,3315.9,8.525957]
[1720024801343,3.01509,3316.7,3316.0,3.01566]
[1720024803298,3.01509,3316.7,3315.9,3.378187]
[1720024803299,3.05158046,3316.6,3315.9,3.378187]
[1720024803502,3.05158046,3316.6,3316.0,0.8525957]
[1720024803825,3.01523,3316.5,3316.0,0.8525957]
[1720024804029,3.01523,3316.5,3315.9,2.3141]
[1720024805921,0.03638046,3316.4,3315.6,2.3436]
[1720024807028,3.01541,3316.3,3315.6,5.35963]
[1720024807933,3.01541,3316.3,3315.6,5.35959]
[1720024808142,3.01541,3316.3,3315.7,0.535959]